{"text_format":"1","workbook":"xlsx","n_sheets":4,"sheets":["Introduction","Input","Summary","Details"],"not_rendered":{"charts":0,"images":1,"macros":1,"external_links":0,"defined_names":24,"comments":0,"pivot_tables":0},"unopened":[],"bounds":{"document_bytes":16777216,"sheet_cells":100000,"rows_first":2000,"rows_last":500,"rows_between":2000,"halvings":0,"cell_chars":16384,"cell_head_chars":4096},"cells_cut":0,"cells_raw":0,"read":"whole","date_system":"1900"}

{"sheet":"Introduction","index":0,"n_rows":26,"n_cols":2,"rows_kept":26,"cut":false,"hidden":false,"merged":[]}
[null,"Ce calculateur des coûts de production du biodiesel contient 4 feuilles de calcul                                                                                                                                                                                                                  \n Certains champs peuvent être remplis par l’utilisateur. Il comporte 8 colonnes et 250 lignes."]
[null,"Lignes directrices pour estimer"]
[null,"les coûts de production du biodiesel de canola — carburant agricole"]
[null,{"$f":"\"basé sur \"&Input!D14&\" 000 litres d'huile végétale usagée\"","v":"basé sur 15 000 litres d'huile végétale usagée"}]
[]
[]
[]
[]
[]
[]
[]
[null,"Ce guide vous offre des renseignements en matière de planification et un format pour calculer les coûts de production pour une production de biodiesel à la ferme en fonction du coût de la culture du canola dans votre exploitation agricole. Les coûts de renonciation relatifs aux prix potentiels du marché pour le canola ne sont pas inclus. Des rajustements sont nécessaires lorsque vous appliquez ces chiffres à votre propre entreprise. "]
[]
[null,"Les prévisions budgétaires sont basées sur un certain nombre d’hypothèses qui sont clairement définies dans les pages secondaires.  Les coûts des intrants sont basés sur les renseignements fournis par l’industrie. Une gestion adéquate des installations dans le processus de production et la conformité avec l’ensemble des exigences environnementales et en matière de sécurité qui s’appliquent sont présumées. La plupart des fabricants d’équipement d’origine exigent que le biodiesel respecte la norme de qualité pour les carburants ASTM D6751."]
[]
[null,"Avis de non-responsabilité : Ce budget n’est qu’un guide et ne constitue pas une étude approfondie du coût de production de l’industrie du diesel. L’interprétation et l’utilisation de ces renseignements sont la responsabilité de l’utilisateur. Si vous avez besoin d’aide pour élaboration du budget individuel pour votre exploitation, communiquez avec le Centre d’information agricole au 1 877 424-1300."]
[]
[]
[null,"Adapté pour l’Ontario par Kevin McKague et Richard Brunke"]
[null,"Ingénieristes, MAAARO"]
[null,"courrie : kevin.mckague@ontario.ca"]
[null,"version du 14 octobre 2014"]
[]
[]
[]
[null,"Fin de la feuille de calcul"]

{"sheet":"Input","index":1,"n_rows":69,"n_cols":7,"rows_kept":69,"cut":false,"hidden":false,"merged":[]}
[null,"Ce calculateur des coûts de production du biodiesel contient 4 feuilles de calcul.\nCertains champs peuvent être remplis par l’utilisateur. Il comporte 8 colonnes et 250 lignes."]
[null,"Coûts de production du biodiesel — intrants"]
[]
[null,"Hypothèses"]
[]
[null,"1. Ce budget décrit le coût de production pour une exploitation de biodiesel."]
[null,"2.  Les bâtiments et l’équipement sont évalués au nouveau coût."]
[null,"3.  Toute la matière première est évaluée au prix du marché."]
[null,"4. Le coût de la matière première (huile végétale usagée) ne comprend pas les coûts de transport "]
[null,"     vers l’installation."]
[null,"5.  Tout le biodiesel produit est destiné uniquement à être utilisé à la ferme."]
[]
[null,"Production de l’installation de biodiesel",null,"Variables des intrants","   Unités","Commentaires"]
[null," Taille de l’installation — milliers de litres",null,15]
[null," Jours par année",null,65]
[null," Heures d’exploitation par jour",null,8]
[null," Employés par quart de travail — production de biodiesel",null,0.25]
[null," Taux de main-d’œuvre",null,20,"/ heure"]
[]
[null,"Huile végétale nécessaire par litre de biodiesel",null,1.05," litres"]
[null," Méthanol",null,6950," / tonne"]
[null," Récupération du méthanol",null,25,"%"]
[null," Catalyseur — hydroxyde de potassium",null,12350," / tonne"]
[null,"Augmentation du pourcentage du catalyseur requis pour les AGL",null,100,"%"]
[]
[null," Glycérol",null,180," / tonne"]
[null,"Diesel (coloré) carburant agricole — DTUFS",null,1.2," / litre"]
[null," Usage du mélange de biodiesel agricole",null,100,"%"]
[null,"Augmentation de l’efficacité du carburant agricole avec l’utilisation du biodiesel",null,1.5,"%"]
[]
[null,"Approvisionnement en huile végétale usagée"]
[null,"Coût de l’huile végétale usagée",null,500," / tonne"]
[null,"Taille moyen du chargement par ramassage d’huile",null,2200,"litres"]
[null,"Distance moyenne par ramassage d’huile",null,200,"kilomètres"]
[null,"Coût du camionnage — 1 tonne par remorque",null,0.5," / km"]
[null,"Taux de main-d’œuvre",null,20," / heure"]
[null," Densité apparente de l’huile usagée",null,0.91500000000000004," kg / L"]
[]
[null,"Autres coûts d’exploitation"]
[null," Hydro",null,0.15," / kWh"]
[null," Entretien",null,2.5,"%"]
[null," Élimination des déchets/eaux usées",null,0.15," / L"]
[null," Déclaration de la taxe sur les carburants de l’Ontario (0,143/L si le produit est utilisé dans des véhicules titulaires de permis)",null,0," / L"]
[null," Administration diverse (p. ex., inscription auprès du ministère des Finances de l’Ontario)",null,0," / an"]
[null," Assurance",null,0.5,"%"]
[null," Impôt foncier",null,0.5,"%"]
[null," Taux d’investissement    ",null,2.5,"%"]
[null," Taux du droit d'exploitation",null,4,"%"]
[null,null,"","",null,null,""]
[null,"Coûts des immobilisations"]
[null,"   Bâtiments ","Valeur initiale",null,"Valeur de récupération","Durée économique"]
[null,"    Installation de biodiesel",3000,null,0.1,20,"ans"]
[null,"    Traitement de l’huile usée",2500,null,0.1,20,"ans"]
[null,"   Total ",{"$f":"SUM(C52:C53)","v":5500},null,{"$f":"AVERAGE(E52:E53)","v":0.1},{"$f":"AVERAGE(F52:F53)","v":20},"ans"]
[null,null,null,null,null,null,""]
[null,"  Machinerie et équipement"]
[null,"    Installation de biodiesel",3000,null,0.1,10,"ans"]
[null,"    Filtration de l’huile usée",2500,null,0.1,10,"ans"]
[null,"    Total ",{"$f":"SUM(C57:C58)","v":5500},null,{"$f":"AVERAGE(E57:E58)","v":0.1},{"$f":"AVERAGE(F57:F58)","v":10},"ans"]
[]
[null,"    Total bâtiments, machinerie et équipement  ",{"$f":"C54+C59","v":11000}]
[]
[null,"    Valeur totale des terrains",10000]
[]
[null,"    Total des investissements en immobilisations",{"$f":"C61+C63","v":21000}]
[]
[]
[]
[null,"Fin de la feuille de calcul"]

{"sheet":"Summary","index":2,"n_rows":63,"n_cols":5,"rows_kept":63,"cut":false,"hidden":false,"merged":[]}
[null,"Ce calculateur des coûts de production du biodiesel contient 4 feuilles de calcul.\nCertains champs peuvent être remplis par l’utilisateur. Il comporte 8 colonnes et 250 lignes."]
[null,{"$f":"\"      Coûts de production du biodiesel — carburant agricole\"","v":"      Coûts de production du biodiesel — carburant agricole"},null,{"$f":"TODAY()","v":"2023-04-14"}]
[null,{"$f":"\"Basés sur \"&Input!D14&\" 000 litres d'huile végérale usagée\"","v":"Basés sur 15 000 litres d'huile végérale usagée"}]
[]
[]
[null,"A.  Coûts d’exploitation","Coût/litre","Coût total","Votre coût réel"]
[null,"1.  Coûts des intrants"]
[null,"    1.01   Matière première — huile végétale usagée",{"$f":"SUM(D8/(Input!D14*1000))","v":0.52704166666666663},{"$f":"Details!G40","v":7905.625}]
[null,"    1.02   Méthanol",{"$f":"SUM(D9/(Input!D14*1000))","v":1.1017400625},{"$f":"Details!G50","v":16526.100937499999}]
[null,"    1.03   Catalyseur",{"$f":"SUM(D10/(Input!D14*1000))","v":0.38467181025000002},{"$f":"Details!G62","v":5770.0771537500004}]
[null,"Sous-total du coût des intrants",{"$f":"C8+C9+C10","v":2.0134535394166666},{"$f":"SUM(D8:D10)","v":30201.80309125}]
[]
[null,"2. Autres coûts d’exploitation",""]
[null,"    2.01   Hydro",{"$f":"SUM(D14/(Input!D14*1000))","v":9.9000000000000008E-3},{"$f":"Details!G69","v":148.5}]
[null,"    2.02  Entretien",{"$f":"SUM(D15/(Input!D14*1000))","v":1.8333333333333333E-2},{"$f":"Details!G76","v":275}]
[null,"    2.03   Élimination des déchets/eaux usées",{"$f":"SUM(D16/(Input!D14*1000))","v":0.15},{"$f":"Details!G79","v":2250}]
[null,"    2.04   Déclaration de la taxe sur les carburants de l’Ontario",{"$f":"SUM(D17/(Input!D14*1000))","v":0},{"$f":"Details!G80","v":0}]
[null,"    2.05  Frais d’administration divers",{"$f":"SUM(D18/(Input!D14*1000))","v":0},{"$f":"Details!G81","v":0}]
[null,"    2.06   Assurance",{"$f":"SUM(D19/(Input!D14*1000))","v":3.6666666666666666E-3},{"$f":"Details!G88","v":55}]
[null,"    2.07   Impôt foncier",{"$f":"SUM(D20/(Input!D14*1000))","v":5.1666666666666666E-3},{"$f":"Details!G95","v":77.5}]
[null,"Sous-total des coûts d’exploitation",{"$f":"SUM(C14:C20)","v":0.18706666666666666},{"$f":"SUM(D14:D20)","v":2806}]
[null,"    2.08   Droit d’exploitation",{"$f":"SUM(D22/(Input!D14*1000))","v":3.7333333333333333E-3},{"$f":"ROUND(Details!G103,0)","v":56}]
[null,"Total des coûts d’exploitation",{"$f":"C21+C22+C11","v":2.2042535394166665},{"$f":"SUM(D21:D22)+D11","v":33063.803091249996}]
[]
[null,"3.  Dépréciation"]
[null,"    3.01   Bâtiments",{"$f":"SUM(D26/(Input!D14*1000))","v":1.6500000000000001E-2},{"$f":"Details!G132","v":247.5}]
[null,"    3.02   Machinerie et équipement",{"$f":"SUM(D27/(Input!D14*1000))","v":3.3000000000000002E-2},{"$f":"Details!G138","v":495}]
[]
[null,"4.  Investissements","",""]
[null,"    4.01   Bâtiments",{"$f":"SUM(D30/(Input!D14*1000))","v":5.0416666666666665E-3},{"$f":"Details!G147","v":75.625}]
[null,"    4.02   Machinerie et équipement",{"$f":"SUM(D31/(Input!D14*1000))","v":5.0416666666666665E-3},{"$f":"Details!G154","v":75.625}]
[null,"    4.03   Terrains",{"$f":"SUM(D32/(Input!D14*1000))","v":1.6666666666666666E-2},{"$f":"Details!G159","v":250}]
[null,"Total des coûts fixes",{"$f":"SUM(C26:C32)","v":7.6249999999999998E-2},{"$f":"SUM(D26:D32)","v":1143.75}]
[null,"Total des coûts d’exploitation et des coûts fixes",{"$f":"C23+C33","v":2.2805035394166664},{"$f":"D23+D33","v":34207.553091249996}]
[]
[null,"C. Main-d’œuvre",{"$f":"SUM(D36/(Input!D14*1000))","v":0.21274074074074076},{"$f":"Details!G176","v":3191.1111111111113}]
[null,"Total du coût de production",{"$f":"C34+C36","v":2.4932442801574073},{"$f":"D36+D34","v":37398.664202361106}]
[]
[null,"D.  Valeur"]
[null,"5.  Biodiesel"]
[null,"    5.01   Valeur estimée du biodiesel agricole",{"$f":"SUM(D41/(Input!D14*1000))","v":1.2},{"$f":"Details!G183","v":18000}]
[null,"    5.02   Valeur estimée de l’efficacité accrue du carburant",{"$f":"SUM(D42/(Input!D14*1000))","v":1.8274111675126825E-2},{"$f":"Details!G198","v":274.11167512690236}]
[null,"    5.03   Ventes de glycérol",{"$f":"SUM(D43/(Input!D14*1000))","v":1.6845912000000001E-2},{"$f":"Details!G203","v":252.68868000000001}]
[null,"Valeur totale",{"$f":"C41+C42+C43","v":1.2351200236751267},{"$f":"D41+D42+D43","v":18526.800355126903}]
[]
[null,"Valeur totale — coût de production",{"$f":"C44-C37","v":-1.2581242564822805},{"$f":"D44-D37","v":-18871.863847234203}]
[]
[null,"Prix limite"," $/Litre"]
[null,"        A. Coûts d’exploitation",{"$f":"SUM((D23-(D44-D41))/(Input!D14*1000))","v":2.1691335157415397}]
[null,"        B. Coûts d’exploitation et de la main-d’œuvre",{"$f":"SUM(((D23+D36)-(D44-D41))/(Input!D14*1000))","v":2.3818742564822801}]
[null,"        C. Coûts d’exploitation et coûts fixes",{"$f":"SUM((D34-(D44-D41))/(Input!D14*1000))","v":2.2453835157415392}]
[null,"        D. Coûts d’exploitation, fixes et de la main-d’œuvre",{"$f":"SUM(((D34+D36)-(D44-D41))/(Input!D14*1000))","v":2.4581242564822801}]
[]
[]
[null,{"$f":"\"Prix limite $/litre = (coût - (valeur totale – valeur estimée du biodiesel agricole))  ÷ \"&Input!D14&\"000 litres\"","v":"Prix limite $/litre = (coût - (valeur totale – valeur estimée du biodiesel agricole))  ÷ 15000 litres"}]
[]
[]
[]
[]
[]
[null,"Avis de non-responsabilité : Ce budget n’est qu’un guide et ne constitue pas une étude approfondie du coût de production de"]
[null,"cette industrie.  L’interprétation et l’utilisation de ces renseignements sont la responsabilité de l’utilisateur. Aucune responsabilité"]
[null,"\tn’est assumée pour des décisions fondées sur l’interprétation et l’utilisation des renseignements de la présente publication.\t\t\t\t\t\t\n"]

{"sheet":"Details","index":3,"n_rows":216,"n_cols":9,"rows_kept":216,"cut":false,"hidden":false,"merged":[]}
[null,"Ce calculateur des coûts de production du biodiesel contient 4 feuilles de calcul.\nCertains champs peuvent être remplis par l’utilisateur. Il comporte 8 colonnes et 250 lignes."]
[null,"Feuille de calcul sur la production de biodiesel"]
[]
[]
[null,"Hypothèses"]
[null,"1.  Ce budget décrit le coût de production pour une exploitation de biodiesel."]
[null,"2.  Les bâtiments et l’équipement sont évalués au nouveau coût."]
[null,"3.  Tout le soya utilisé comme matière première est évalué au coût de production."]
[null,"4.  Le coût de la matière première (huile végétale) inclut la valeur marchande du tourteau de soya produit."]
[null,"5.  Tout le biodiesel produit est destiné uniquement à être utilisé à la ferme.."]
[]
[]
[]
[null,"A. Coûts d’exploitation"]
[null,null,"1.  Coûts des intrants",null,null,null,null,null,"Vos valeurs"]
[null,null,null,"1.01  Matière première — huile végétale usagée"]
[null,null,null,null,null,null,{"$f":"SUM(1000*Input!D14)","v":15000},"Capacité de l’installation de biodiesel — litres"]
[null,null,null,null,null,"x",{"$f":"Input!D20","v":1.05},"huile nécessaire par litre de biodiesel"]
[null,null,null,null,null,"=",{"$f":"SUM(G17*G18)","v":15750},"Litres d’huile végétale nécessaires"]
[null,null,null,null,null,"x",{"$f":"Input!D37","v":0.91500000000000004},"densité apparente de l’huile végétale usagée kg/L"]
[null,null,null,null,null,"÷",1000,"kg par tonne"]
[null,null,null,null,null,"=",{"$f":"SUM(G19*G20)/G21","v":14.411250000000001},"Tonnes d’huile végétale usagée"]
[]
[null,null,null,null,null,null,{"$f":"G22","v":14.411250000000001},"Tonnes d’huile végétale"]
[null,null,null,null,null,"x",{"$f":"Input!D32","v":500},"Huile végétale usagée par tonne"]
[null,null,null,null,null,"=",{"$f":"SUM(G24*G25)","v":7205.625},"Coût de l’huile végétale usagée"]
[]
[null,null,null,null,null,null,{"$f":"Input!D33","v":2200},"Taille moyen en litres du chargement par ramassage"]
[]
[null,null,null,null,null,null,{"$f":"G19","v":15750},"Litres d’huile végétale nécessaires  "]
[null,null,null,null,null,"÷",{"$f":"G28","v":2200},"Taille du chargement en litres par ramassage  "]
[null,null,null,null,null,"=",{"$f":"ROUND(G30/G31,0)","v":7},"Nombre total de chargements"]
[null,null,null,null,null,"x",{"$f":"Input!D34","v":200},"Moyenne de km par ramassage"]
[null,null,null,null,null,"=",{"$f":"SUM(G32*G33)","v":1400},"Nombre de km"]
[null,null,null,null,null,"x",{"$f":"Input!D35","v":0.5},"Coût du camionnage par km"]
[null,null,null,null,null,"=",{"$f":"SUM(G34*G35)","v":700},"Coûts du camionnage  "]
[]
[null,null,null,null,null,null,{"$f":"G26","v":7205.625},{"$f":"H26","v":"Coût de l’huile végétale usagée"}]
[null,null,null,null,null,"-",{"$f":"G36","v":700},{"$f":"H36","v":"Coûts du camionnage  "}]
[null,null,null,null,"Total ","=",{"$f":"SUM(G38+G39)","v":7905.625},"Coût net de la matière première"]
[]
[null,null,null,"1.02  Méthanol"]
[null,null,null,null,null,null,{"$f":"SUM(1000*Input!D14)","v":15000},"Capacité de l’installation de biodiesel — litres"]
[null,null,null,null,null,"x",{"$f":"Input!D20","v":1.05},"huile nécessaire par litre de biodiesel"]
[null,null,null,null,null,"x",{"$f":"Input!D37","v":0.91500000000000004},"densité apparente de l’huile usagée kg/L"]
[null,null,null,null,null,"x",0.22,"Méthanol nécessaire"]
[null,null,null,null,null,"x",{"$f":"(Input!D22/100)","v":0.25},"Récupération du méthanol"]
[null,null,null,null,null,"÷",1000,"kg par tonne"]
[null,null,null,null,null,"x",{"$f":"Input!D21","v":6950},"Méthanol par tonne"]
[null,null,null,null,"Total","=",{"$f":"(G43*G44*G45*G46*(1-G47)*G49)/G48","v":16526.100937499999},"Méthanol"]
[]
[null,null,null,"1.03  Catalyseur"]
[null,null,null,null,null,null,{"$f":"SUM(1000*Input!D14)","v":15000},"Capacité de l’installation de biodiesel — litress"]
[null,null,null,null,null,"x",{"$f":"Input!D20","v":1.05},"huile nécessaire par litre de biodiesel"]
[null,null,null,null,null,"x",{"$f":"Input!D37","v":0.91500000000000004},"Densité apparente de l’huile usagée kg/L"]
[null,null,null,null,null,"÷",1000,"kg par tonne"]
[null,null,null,null,null,"x",16.21,"kg d’hydroxyde de potassium/tonne"]
[null,null,null,null,null,"+",{"$f":"G57*(Input!D24/100)","v":16.21},"Catalyseur supplémentaire pour rajuster les AGL (kg/T)"]
[null,null,null,null,null,"=",{"$f":"G57+G58","v":32.42},"Total des kg d’hydroxyde de potassium/tonne"]
[null,null,null,null,null,"÷",1000,"kg par tonne"]
[null,null,null,null,null,"x",{"$f":"Input!D23","v":12350},"Catalyseur par tonne"]
[null,null,null,null,"Total","=",{"$f":"SUM(G53*G54*G55/G56*G59/G60*G61)","v":5770.0771537500004},"Catalyseur "]
[]
[null,null,"2.  Autres coûts d’exploitation"]
[null,null,null,"2.01  Hydro"]
[null,null,null,null,null,null,{"$f":"Input!D14*1000","v":15000},"Capacité de l’installation de biodiesel — litres"]
[null,null,null,null,null,"x",6.6000000000000003E-2,"kWhr par litre"]
[null,null,null,null,null,"x",{"$f":"Input!D40","v":0.15},"Tarif hydro — kWhr"]
[null,null,null,null,"Total ","=",{"$f":"SUM((G66*G67*G68))","v":148.5},"Hydro - biodiesel"]
[]
[null,null,null,"2.02  Entretien"]
[null,null,null,null,null,null,{"$f":"Input!C54","v":5500},"coûts des immobilisations — bâtiments"]
[null,null,null,null,null,"+",{"$f":"Input!C59","v":5500},"coût des immobilisations — équipement"]
[null,null,null,null,null,"=",{"$f":"SUM(G72:G73)","v":11000},"Total bâtiments et équipement"]
[null,null,null,null,null,"x",{"$f":"Input!D41/100","v":2.5000000000000001E-2},"Taux d’entretien"]
[null,null,null,null,null,"=",{"$f":"SUM(G74*G75)","v":275},"Total entretien"]
[]
[null,null,null,"2.03 - 2.05   Frais d’administration divers"]
[null,null,null,null,null,null,{"$f":"Input!D14*1000*Input!D42","v":2250},"Élimination des déchets/eaux usées"]
[null,null,null,null,null,null,{"$f":"Input!D14*1000 * Input!D43","v":0},"Déclaration de la taxe sur les carburants de l’Ontario"]
[null,null,null,null,null,null,{"$f":"Input!D44","v":0},"Frais d’administration divers  "]
[]
[null,null,null,"2.06  Assurance"]
[null,null,null,null,null,null,{"$f":"Input!C54","v":5500},"coûts des immobilisations — bâtiments"]
[null,null,null,null,null,"+",{"$f":"Input!C59","v":5500},"coût des immobilisations — équipement"]
[null,null,null,null,null,"=",{"$f":"SUM(G84:G85)","v":11000},"Total bâtiments et équipement"]
[null,null,null,null,null,"x",{"$f":"Input!D45/100","v":5.0000000000000001E-3},"Taux d’assurance"]
[null,null,null,null,null,"=",{"$f":"SUM(G86*G87)","v":55},"Total assurance"]
[]
[null,null,null,"2.07 Impôt foncier"]
[null,null,null,null,null,null,{"$f":"Input!C54","v":5500},"coûts des immobilisations — bâtiments"]
[null,null,null,null,null,"+",{"$f":"Input!C63","v":10000},"coûts des immobilisations — terrains"]
[null,null,null,null,null,"=",{"$f":"SUM(G91:G92)","v":15500},"Total bâtiments et terrains"]
[null,null,null,null,null,"x",{"$f":"Input!D46/100","v":5.0000000000000001E-3},"Taux d’impôt foncier"]
[null,null,null,null,null,"=",{"$f":"SUM(G93*G94)","v":77.5},"Total impôt foncier"]
[]
[null,null,null,"2.08  Droit d’exploitation"]
[null,null,null,"        (Le droit d’exploitation est perçu sur la moitié du sous-total des coûts d’exploitation)"]
[]
[null,null,null,null,null,null,{"$f":"Summary!D21","v":2806},"sous-total des coûts d’exploitation"]
[null,null,null,null,null,"÷",2,"moyenne"]
[null,null,null,null,null,"x",{"$f":"Input!D48","v":4},"% taux du droit d’exploitation"]
[null,null,null,null,null,"=",{"$f":"ROUND((G100/G101)*(G102),2)/100","v":56.12},"Droit d'exploitation"]
[]
[null,null,null,null,null,null,"Coûts des immobilisations"]
[]
[null,null,"  Bâtiments"]
[null,null,"        Installation de biodiesel",null,null,null,null,{"$f":"Input!C52","v":3000}]
[null,null,"       Installation d’huile usée",null,null,null,null,{"$f":"Input!C53","v":2500}]
[null,null,"         Coût total des bâtiments",null,null,null,null,{"$f":"SUM(H108:H109)","v":5500}]
[]
[null,null,"  Machinerie et équipement"]
[null,null,"       Installation de biodiesel",null,null,null,null,{"$f":"Input!C57","v":3000}]
[null,null,"       Filtration de l’huile usée",null,null,null,null,{"$f":"Input!C58","v":2500}]
[null,null,"         Coût total de la machinerie et de l’équipement",null,null,null,null,{"$f":"SUM(H113:H114)","v":5500}]
[]
[null,null,"Total bâtiments, machinerie et équipement",null,null,null,null,{"$f":"H110+H115","v":11000}]
[]
[null,null,"Valeur totale des terrains",null,null,null,null,{"$f":"Input!C63","v":10000}]
[]
[null,null,"Total des investissements en immobilisations",null,null,null,null,{"$f":"H117+H119","v":21000}]
[]
[]
[null,"B. Coûts fixes"]
[null,null,"3.  Dépréciation",null,null,null,"Coût historique — valeur de récupération"]
[null,null,null,null,null,null,"                              Durée économique"]
[]
[null,null,null,"3.01  Bâtiments"]
[null,null,null,null,null,null,{"$f":"Input!C54","v":5500},"coût historique"]
[null,null,null,null,null,"-",{"$f":"(Input!E54)*Input!C54","v":550},"valeur de récupération"]
[null,null,null,null,null,"÷",{"$f":"Input!F54","v":20},"années de durée économique"]
[null,null,null,null,null,"=",{"$f":"((G129-G130)/G131)","v":247.5}]
[]
[null,null,null,"3.02  Machinerie et équipement"]
[null,null,null,null,null,null,{"$f":"Input!C59","v":5500},"coût historique"]
[null,null,null,null,null,"-",{"$f":"(Input!E59)*Input!C59","v":550},"valeur de récupération"]
[null,null,null,null,null,"÷",{"$f":"Input!F59","v":10},"années de durée économique"]
[null,null,null,null,null,"=",{"$f":"((G135-G136)/G137)","v":495}]
[null,null,null,null,null,null,null,""]
[null,null,"4.  Investissements",null,null,null,"Coût historique + valeur de récupération x taux d’investissement"]
[null,null,null,null,null,null,null,2]
[null,null,null,"4.01  Bâtiments"]
[null,null,null,null,null,null,{"$f":"G129","v":5500},"coût historique"]
[null,null,null,null,null,"+",{"$f":"G130","v":550},"valeur de récupération"]
[null,null,null,null,null,"÷",2,"moyenne"]
[null,null,null,null,null,"x",{"$f":"Input!D47","v":2.5},"% taux d’investissement"]
[null,null,null,null,null,"=",{"$f":"(((G143+G144)/G145)*(G146/100))","v":75.625}]
[]
[null,null,null,"4.02  Machinery & Equipment"]
[null,null,null,null,null,null,{"$f":"G135","v":5500},"coût historique"]
[null,null,null,null,null,"+",{"$f":"G136","v":550},"valeur de récupération"]
[null,null,null,null,null,"÷",2,"moyenne"]
[null,null,null,null,null,"x",{"$f":"Input!D47","v":2.5},"% taux d’investissement"]
[null,null,null,null,null,"=",{"$f":"(((G150+G151)/G152)*(G153/100))","v":75.625}]
[]
[null,null,null,"4.03  Terrains"]
[null,null,null,null,null,null,{"$f":"Input!C63","v":10000},"terrains"]
[null,null,null,null,null,"x",{"$f":"Input!D47","v":2.5},"% taux d’investissement"]
[null,null,null,null,null,"=",{"$f":"SUM(G157*(G158/100))","v":250}]
[]
[null,"C. Main-d’œuvre"]
[null,null,null,"    Huile végétale usagée"]
[null,null,null,null,null,"x",{"$f":"G32","v":7},"Nombre total de chargements"]
[null,null,null,null,null,"x",{"$f":"SUM(G33/90)+2","v":4.2222222222222223}," Heures par chargement"]
[null,null,null,null,null,"x",{"$f":"Input!D36","v":20}," Taux de main-d’œuvre par heure"]
[null,null,null,null,"   Total","=",{"$f":"SUM(G163*G164*G165)","v":591.11111111111109},"Coût de la main-d’œuvre pour l’huile végétale usagée"]
[null,null,null,null,null,null,{"$f":"SUM(G163*G164)/(40*48)","v":1.539351851851852E-2},"Emplois à temps plein"]
[null,null,null,"    Biodiesel"]
[null,null,null,null,null,null,{"$f":"Input!D17","v":0.25}," Employés par quart de travail  "]
[null,null,null,null,null,"x",{"$f":"Input!D15","v":65},"Jours par année"]
[null,null,null,null,null,"x",{"$f":"Input!D16","v":8},"Heures d’exploitation par jour"]
[null,null,null,null,null,"x",{"$f":"Input!D18","v":20},"Taux de main-d’œuvre par heure"]
[null,null,null,null,"   Total","=",{"$f":"SUM(G169*G170*G171*G172)","v":2600},"Coût de la main-d’œuvre pour le biodiesel"]
[null,null,null,null,null,null,{"$f":"SUM((Input!D15*Input!D16)*Input!D17)/(40*48)","v":6.7708333333333329E-2},"Emplois à temps plein"]
[]
[null,null,null,"Total",null,"=",{"$f":"G173+G166","v":3191.1111111111113},"Main-d’œuvre"]
[null,null,null,"Total",null,"=",{"$f":"SUM(G174+G167)","v":8.3101851851851843E-2},"Emplois à temps plein"]
[]
[null,null,"5.  Valeur"]
[null,null,null,"5.01  Valeur estimée du biodiesel agricole"]
[null,null,null,null,null,null,{"$f":"Input!D27","v":1.2},"Diesel (coloré) carburant agricole — #1 DTUFS"]
[null,null,null,null,null,"x",{"$f":"SUM(1000*Input!D14)","v":15000},"Capacité de l’installation de biodiesel — litres"]
[null,null,null,null,"Total ","=",{"$f":"G182*G181","v":18000},"Valeur du biodiesel"]
[]
[null,null,null,"5.02  Valeur estimée de l’efficacité accrue du carburant"]
[null,null,null,null,null,null,{"$f":"SUM(1*(1-(Input!D29/100)))*(1*(1-(Input!D28/100)))","v":0},{"$f":"\"Carburant diesel utilisé — portion du mélange B\"&Input!D27","v":"Carburant diesel utilisé — portion du mélange B1,2"}]
[null,null,null,null,null,"x",{"$f":"Input!D27","v":1.2},"Diesel (coloré) carburant agricole — #1 DTUFS"]
[null,null,null,null,null,"=",{"$f":"SUM(G186*G187)","v":0},{"$f":"\"Valeur du carburant diesel — portion du mélange B\"&Input!D28&\"\"","v":"Valeur du carburant diesel — portion du mélange B100"}]
[]
[null,null,null,null,null,null,{"$f":"Input!D27","v":1.2},"Diesel (coloré) carburant agricole — #1 DTUFS"]
[null,null,null,null,null,"-",{"$f":"G188","v":0},{"$f":"H188","v":"Valeur du carburant diesel — portion du mélange B100"}]
[null,null,null,null,null,"=",{"$f":"SUM(G190-G191)","v":1.2},{"$f":"\"Valeur du carburant biodiesel — portion du mélange B\"&Input!D28&\"\"","v":"Valeur du carburant biodiesel — portion du mélange B100"}]
[null,null,null,null,null,"÷",{"$f":"SUM(1*(1-(Input!D29/100)))*(1*((Input!D28/100)))","v":0.98499999999999999},{"$f":"\"Carburant biodiesel utilisé — portion du mélange B\"&Input!D28&\"\"","v":"Carburant biodiesel utilisé — portion du mélange B100"}]
[null,null,null,null,null,null,{"$f":"SUM(G192/G193)","v":1.2182741116751268},"Total de la valeur relative du biodiesel"]
[null,null,null,null,null,"-",{"$f":"Input!D27","v":1.2},"Diesel (coloré) carburant agricole — #1 DTUFS"]
[null,null,null,null,null,"=",{"$f":"SUM(G194-G195)","v":1.8274111675126825E-2},"Solde — valeur relative du biodiesel"]
[null,null,null,null,null,"x",{"$f":"SUM(1000*Input!D14)","v":15000},"Capacité de l’installation de biodiesel — litres"]
[null,null,null,null,"Total ","=",{"$f":"G197*G196","v":274.11167512690236},"Valeur accrue de l’efficacité du carburant"]
[]
[null,null,null,"5.03  Ventes de glycérol"]
[null,null,null,null,null,null,{"$f":"SUM((Input!D14*1000)*0.0935884)/1000","v":1.403826},"Tonnes de glycérol produites"]
[null,null,null,null,null,"x",{"$f":"Input!D26","v":180},"glycérol par tonne"]
[null,null,null,null,"Total ","=",{"$f":"G202*G201","v":252.68868000000001},"Glycérol"]
[]
[null,"Pour de plus amples renseignements, communiquez avec :"]
[]
[]
[null,"Préparé par :",null,null,null,null,null,"Adapté pour l’Ontario par :"]
[]
[null,"Roy Arnott,agronome",null,null,null,null,null,"Kevin McKague, ingénieur."]
[null,"Spécialiste en gestion d’exploitation agricole ",null,null,null,null,null,"Ministère de l’Agriculture, de l’Alimentation et des Affaires rurales de l’Ontario"]
[null,"Agricultrure, Alimentation et Initiatives rurales Manitoba",null,null,null,null,null,"Woodstock, ON  519 835-6078"]
[null,"Killarney GO Centre  204 523-6424",null,null,null,null,null,"courriel : kevin.mckague@ontario.ca"]
[]
[]
[null,"Fin de la feuille de calcul"]